[Event "*** Titled Tuesday Blitz"]
[Site "Chess.com"]
[Date "2019.01.01"]
[Round "2"]
[White "shnitez"]
[Black "GadimbayliA"]
[Result "0-1"]
[WhiteElo "2545"]
[BlackElo "2768"]
[TimeControl "180+2"]
[EndTime "13:22:38 PST"]
[Termination "GadimbayliA won by resignation"]

1. e4 {[%clk 0:03:01.9]} 1... e6 {[%clk 0:02:58.1]} 2. d4 {[%clk 0:03:02.1]}
2... d5 {[%clk 0:03:00]} 3. Bd3 {[%clk 0:03:03.1]} 3... dxe4 {[%clk 0:03:00.7]}
4. Bxe4 {[%clk 0:03:05]} 4... Nf6 {[%clk 0:03:02.6]} 5. Bf3 {[%clk 0:03:06.3]}
5... c5 {[%clk 0:03:03.9]} 6. Ne2 {[%clk 0:03:07.5]} 6... Nc6 {[%clk 0:03:04.6]}
7. Be3 {[%clk 0:03:07.9]} 7... cxd4 {[%clk 0:03:01.4]} 8. Nxd4 {[%clk
0:03:08.8]} 8... Nxd4 {[%clk 0:03:01.3]} 9. Qxd4 {[%clk 0:03:10.7]} 9... Be7
{[%clk 0:03:03.1]} 10. Nc3 {[%clk 0:03:03.6]} 10... O-O {[%clk 0:02:48.9]} 11.
O-O {[%clk 0:03:00.3]} 11... Qa5 {[%clk 0:02:45.9]} 12. a3 {[%clk 0:02:48.8]}
12... Rd8 {[%clk 0:02:41.5]} 13. Qc4 {[%clk 0:02:31.4]} 13... Nd5 {[%clk
0:02:22.7]} 14. Nxd5 {[%clk 0:02:21.2]} 14... exd5 {[%clk 0:02:23.1]} 15. Qd3
{[%clk 0:02:08.3]} 15... Bf6 {[%clk 0:01:50]} 16. Bd4 {[%clk 0:01:55.9]} 16...
Bf5 {[%clk 0:01:48.4]} 17. Qxf5 {[%clk 0:01:51.3]} 17... Bxd4 {[%clk 0:01:48.9]}
18. c3 {[%clk 0:01:48.8]} 18... Bf6 {[%clk 0:01:49.4]} 19. Rad1 {[%clk
0:01:36.6]} 19... Qb6 {[%clk 0:01:49.6]} 20. b4 {[%clk 0:01:20]} 20... d4 {[%clk
0:01:08.6]} 21. c4 {[%clk 0:00:54.8]} 21... Rab8 {[%clk 0:01:08.2]} 22. c5
{[%clk 0:00:50.9]} 22... Qb5 {[%clk 0:01:03.3]} 23. Be4 {[%clk 0:00:48.4]} 23...
Kf8 {[%clk 0:00:21.8]} 24. Qxh7 {[%clk 0:00:49.1]} 24... Re8 {[%clk 0:00:22.8]}
25. Rfe1 {[%clk 0:00:43]} 25... g6 {[%clk 0:00:21.6]} 26. Bd5 {[%clk 0:00:41.4]}
26... Qd7 {[%clk 0:00:20.4]} 27. Bc4 {[%clk 0:00:35.5]} 27... Rxe1+ {[%clk
0:00:21.1]} 28. Rxe1 {[%clk 0:00:36.5]} 28... d3 {[%clk 0:00:23]} 29. Rd1 {[%clk
0:00:32.6]} 29... Re8 {[%clk 0:00:24.2]} 30. g3 {[%clk 0:00:24.2]} 30... Qe7
{[%clk 0:00:22.1]} 31. Bxd3 {[%clk 0:00:18.8]} 31... Rd8 {[%clk 0:00:22.9]} 32.
Qh6+ {[%clk 0:00:17.7]} 32... Kg8 {[%clk 0:00:23.8]} 33. Qe3 {[%clk 0:00:16.3]}
33... Qxe3 {[%clk 0:00:21.3]} 34. fxe3 {[%clk 0:00:18.2]} 34... Bb2 {[%clk
0:00:23]} 35. Rb1 {[%clk 0:00:14.3]} 35... Rxd3 {[%clk 0:00:23.3]} 36. Rxb2
{[%clk 0:00:15.1]} 36... Rxe3 {[%clk 0:00:21]} 37. a4 {[%clk 0:00:14.6]} 37...
Rc3 {[%clk 0:00:21.9]} 38. Kf2 {[%clk 0:00:14.4]} 38... Kf8 {[%clk 0:00:22.9]}
39. Ke2 {[%clk 0:00:15.7]} 39... Ke7 {[%clk 0:00:22.8]} 40. Kd2 {[%clk
0:00:16.5]} 40... Ra3 {[%clk 0:00:23.7]} 41. a5 {[%clk 0:00:14.3]} 41... Kd7
{[%clk 0:00:25.2]} 42. Kc2 {[%clk 0:00:10.1]} 42... Kc6 {[%clk 0:00:25.5]} 43.
b5+ {[%clk 0:00:06.6]} 43... Kxc5 {[%clk 0:00:26.3]} 44. a6 {[%clk 0:00:08.1]}
44... bxa6 {[%clk 0:00:25.5]} 45. bxa6 {[%clk 0:00:10]} 45... Rxa6 {[%clk
0:00:27.3]} 46. Kd3 {[%clk 0:00:09.5]} 46... Rd6+ {[%clk 0:00:25.9]} 47. Kc3
{[%clk 0:00:09.4]} 47... a5 {[%clk 0:00:26.4]} 48. Rb7 {[%clk 0:00:09.7]} 48...
f5 {[%clk 0:00:25.1]} 49. Kb3 {[%clk 0:00:08.4]} 49... Rb6+ {[%clk 0:00:26.1]}
50. Rxb6 {[%clk 0:00:08.4]} 50... Kxb6 {[%clk 0:00:28]} 51. Ka4 {[%clk
0:00:09.2]} 51... Ka6 {[%clk 0:00:29]} 0-1

[Event "*** Titled Tuesday Blitz"]
[Site "Chess.com"]
[Date "2019.01.01"]
[Round "2"]
[White "Grootneus"]
[Black "Morshynska"]
[Result "0-1"]
[WhiteElo "2180"]
[BlackElo "2089"]
[TimeControl "180+2"]
[EndTime "13:22:38 PST"]
[Termination "Morshynska won by checkmate"]

1. e4 {[%clk 0:03:01.9]} 1... e5 {[%clk 0:02:55.2]} 2. Nf3 {[%clk 0:03:02.6]}
2... Nc6 {[%clk 0:02:53.8]} 3. Bb5 {[%clk 0:03:03.6]} 3... a6 {[%clk 0:02:54.2]}
4. Ba4 {[%clk 0:03:02.7]} 4... Nf6 {[%clk 0:02:53.4]} 5. d3 {[%clk 0:03:03.7]}
5... d6 {[%clk 0:02:52.8]} 6. c3 {[%clk 0:03:04.4]} 6... Bd7 {[%clk 0:02:53]} 7.
O-O {[%clk 0:03:05.4]} 7... g6 {[%clk 0:02:53]} 8. Nbd2 {[%clk 0:03:06]} 8...
Bg7 {[%clk 0:02:53.4]} 9. Re1 {[%clk 0:03:07.6]} 9... O-O {[%clk 0:02:54]} 10.
Nf1 {[%clk 0:03:08.9]} 10... Kh8 {[%clk 0:02:45]} 11. h3 {[%clk 0:03:06.9]}
11... Ng8 {[%clk 0:02:39.9]} 12. d4 {[%clk 0:02:57.3]} 12... Qe7 {[%clk
0:02:33.6]} 13. Ne3 {[%clk 0:02:48.7]} 13... f5 {[%clk 0:02:05]} 14. Nd5 {[%clk
0:02:41.1]} 14... Qd8 {[%clk 0:02:04.6]} 15. exf5 {[%clk 0:02:36.1]} 15... gxf5
{[%clk 0:01:52.2]} 16. Bg5 {[%clk 0:02:27.4]} 16... Qc8 {[%clk 0:01:36.3]} 17.
dxe5 {[%clk 0:01:58.8]} 17... dxe5 {[%clk 0:01:29.1]} 18. Bxc6 {[%clk
0:01:21.1]} 18... bxc6 {[%clk 0:01:27.1]} 19. Nb4 {[%clk 0:00:48.9]} 19... e4
{[%clk 0:01:16.8]} 20. Nh4 {[%clk 0:00:38.2]} 20... Rb8 {[%clk 0:00:58.2]} 21.
Rb1 {[%clk 0:00:29.5]} 21... a5 {[%clk 0:00:41.4]} 22. Nc2 {[%clk 0:00:30.4]}
22... c5 {[%clk 0:00:33]} 23. Ne3 {[%clk 0:00:31.2]} 23... Be6 {[%clk
0:00:32.3]} 24. Qh5 {[%clk 0:00:26.1]} 24... Qe8 {[%clk 0:00:30.1]} 25. Qxe8
{[%clk 0:00:21.6]} 25... Rbxe8 {[%clk 0:00:24.2]} 26. Red1 {[%clk 0:00:23.1]}
26... f4 {[%clk 0:00:20.3]} 27. Nd5 {[%clk 0:00:14.2]} 27... Rf7 {[%clk
0:00:12]} 28. g3 {[%clk 0:00:12.6]} 28... f3 {[%clk 0:00:10.5]} 29. Bf4 {[%clk
0:00:08.8]} 29... Bxh3 {[%clk 0:00:08.9]} 30. Nxc7 {[%clk 0:00:09.2]} 30... Rc8
{[%clk 0:00:08.9]} 31. Nd5 {[%clk 0:00:10.1]} 31... a4 {[%clk 0:00:08.2]} 32.
Re1 {[%clk 0:00:11.2]} 32... Re8 {[%clk 0:00:07.3]} 33. Nc7 {[%clk 0:00:11]}
33... Rc8 {[%clk 0:00:07.5]} 34. Nd5 {[%clk 0:00:12.1]} 34... Re8 {[%clk
0:00:08.5]} 35. c4 {[%clk 0:00:11.5]} 35... h5 {[%clk 0:00:07.4]} 36. Nc3 {[%clk
0:00:11.6]} 36... Bxc3 {[%clk 0:00:05.4]} 37. bxc3 {[%clk 0:00:13.5]} 37... a3
{[%clk 0:00:06.6]} 38. Rb3 {[%clk 0:00:10.6]} 38... Nf6 {[%clk 0:00:06.3]} 39.
Rxa3 {[%clk 0:00:11.3]} 39... Ng4 {[%clk 0:00:06.8]} 40. Ra6 {[%clk 0:00:10.7]}
40... e3 {[%clk 0:00:07]} 41. Bxe3 {[%clk 0:00:10.5]} 41... Nxe3 {[%clk
0:00:06.7]} 42. Rxe3 {[%clk 0:00:12]} 42... Rxe3 {[%clk 0:00:07]} 43. fxe3
{[%clk 0:00:13.9]} 43... f2+ {[%clk 0:00:08.2]} 44. Kh2 {[%clk 0:00:15.6]} 44...
f1=Q {[%clk 0:00:08.7]} 45. Rh6+ {[%clk 0:00:16.8]} 45... Kg7 {[%clk 0:00:08.8]}
46. Rg6+ {[%clk 0:00:18.2]} 46... Kf8 {[%clk 0:00:10]} 47. Rc6 {[%clk
0:00:18.5]} 47... Rf2+ {[%clk 0:00:10.4]} 48. Ng2 {[%clk 0:00:18.4]} 48... Qxg2#
{[%clk 0:00:11.4]} 0-1

[Event "*** Titled Tuesday Blitz"]
[Site "Chess.com"]
[Date "2019.01.01"]
[Round "2"]
[White "talento10"]
[Black "murmah2003"]
[Result "1-0"]
[WhiteElo "2548"]
[BlackElo "2726"]
[TimeControl "180+2"]
[EndTime "13:22:40 PST"]
[Termination "talento10 won by resignation"]

1. e4 {[%clk 0:03:01.9]} 1... c5 {[%clk 0:02:58.9]} 2. Nf3 {[%clk 0:02:58.1]}
2... d6 {[%clk 0:02:59.8]} 3. d4 {[%clk 0:02:22.6]} 3... cxd4 {[%clk 0:03:01.7]}
4. Nxd4 {[%clk 0:02:24.3]} 4... Nf6 {[%clk 0:02:56.3]} 5. Nc3 {[%clk 0:02:25.5]}
5... a6 {[%clk 0:02:57.9]} 6. Bg5 {[%clk 0:02:26.2]} 6... Nbd7 {[%clk
0:02:59.4]} 7. Qd2 {[%clk 0:02:27.3]} 7... Qa5 {[%clk 0:02:34]} 8. O-O-O {[%clk
0:02:25.8]} 8... b5 {[%clk 0:02:26.9]} 9. Nb3 {[%clk 0:02:25.7]} 9... Qc7 {[%clk
0:02:26]} 10. f3 {[%clk 0:02:24.6]} 10... Bb7 {[%clk 0:02:26.9]} 11. Kb1 {[%clk
0:02:25.9]} 11... g6 {[%clk 0:02:24.1]} 12. h4 {[%clk 0:02:26.9]} 12... h6
{[%clk 0:02:18.7]} 13. Be3 {[%clk 0:02:16.5]} 13... Bg7 {[%clk 0:02:19.4]} 14.
g4 {[%clk 0:02:17.3]} 14... Ne5 {[%clk 0:02:15]} 15. Be2 {[%clk 0:02:16.6]}
15... Rc8 {[%clk 0:01:49.2]} 16. g5 {[%clk 0:01:17.1]} 16... hxg5 {[%clk
0:01:48.7]} 17. hxg5 {[%clk 0:01:19]} 17... Nh5 {[%clk 0:01:33.5]} 18. Bd4
{[%clk 0:01:10.1]} 18... O-O {[%clk 0:01:24.4]} 19. f4 {[%clk 0:00:54.3]} 19...
Ng3 {[%clk 0:00:36.1]} 20. fxe5 {[%clk 0:00:35.1]} 20... dxe5 {[%clk 0:00:38]}
21. Bc5 {[%clk 0:00:36.5]} 21... Rfd8 {[%clk 0:00:11.5]} 22. Qe3 {[%clk
0:00:33]} 22... Nxh1 {[%clk 0:00:12.8]} 23. Rxh1 {[%clk 0:00:30.3]} 23... Qd7
{[%clk 0:00:08.2]} 24. Qf2 {[%clk 0:00:22.7]} 24... Qe6 {[%clk 0:00:05.1]} 25.
a3 {[%clk 0:00:21.1]} 25... Rc7 {[%clk 0:00:03.7]} 26. Qh4 {[%clk 0:00:22.1]}
26... Rcd7 {[%clk 0:00:04]} 27. Qh7+ {[%clk 0:00:22.9]} 27... Kf8 {[%clk
0:00:05.5]} 28. Nd5 {[%clk 0:00:18.7]} 28... Bxd5 {[%clk 0:00:05.7]} 29. exd5
{[%clk 0:00:20.6]} 29... Rxd5 {[%clk 0:00:06.8]} 30. Bb4 {[%clk 0:00:17.2]}
30... Qf5 {[%clk 0:00:06.1]} 31. Bd3 {[%clk 0:00:17.8]} 31... Rxd3 {[%clk
0:00:06.4]} 32. cxd3 {[%clk 0:00:19.7]} 32... Rxd3 {[%clk 0:00:08.2]} 33. Ka2
{[%clk 0:00:21.6]} 33... Qf3 {[%clk 0:00:07.3]} 34. Nc5 {[%clk 0:00:21.2]} 34...
Qd5+ {[%clk 0:00:07.5]} 35. Kb1 {[%clk 0:00:21.2]} 35... Rd1+ {[%clk 0:00:06.4]}
36. Rxd1 {[%clk 0:00:21.5]} 36... Qxd1+ {[%clk 0:00:08.3]} 37. Ka2 {[%clk
0:00:23.3]} 37... Qd5+ {[%clk 0:00:09.9]} 38. Nb3 {[%clk 0:00:24.2]} 38... a5
{[%clk 0:00:09]} 39. Bxa5 {[%clk 0:00:24.6]} 39... e4 {[%clk 0:00:09.4]} 40. Qh2
{[%clk 0:00:24.1]} 40... Be5 {[%clk 0:00:07.1]} 41. Qc2 {[%clk 0:00:24.6]} 41...
e3 {[%clk 0:00:06.7]} 42. Qc8+ {[%clk 0:00:24.5]} 42... Kg7 {[%clk 0:00:08]} 43.
Qc2 {[%clk 0:00:26.1]} 43... Bf4 {[%clk 0:00:07.5]} 44. Qe2 {[%clk 0:00:26.6]}
44... Qxg5 {[%clk 0:00:07.9]} 45. Bc3+ {[%clk 0:00:28]} 45... e5 {[%clk
0:00:09]} 46. Qxb5 {[%clk 0:00:28.8]} 46... Qg2 {[%clk 0:00:09.1]} 47. Bxe5+
{[%clk 0:00:29.5]} 47... Kh7 {[%clk 0:00:05.1]} 48. Bxf4 {[%clk 0:00:28.7]}
48... e2 {[%clk 0:00:06.4]} 49. Bd2 {[%clk 0:00:29]} 49... Qf1 {[%clk
0:00:06.5]} 50. Qe5 {[%clk 0:00:29.5]} 50... Kg8 {[%clk 0:00:06.8]} 51. Bc3
{[%clk 0:00:28.9]} 51... Kh7 {[%clk 0:00:08.3]} 1-0

[Event "*** Titled Tuesday Blitz"]
[Site "Chess.com"]
[Date "2019.01.01"]
[Round "2"]
[White "IakovUlivar"]
[Black "chedimir"]
[Result "0-1"]
[WhiteElo "2491"]
[BlackElo "2375"]
[TimeControl "180+2"]
[EndTime "13:22:49 PST"]
[Termination "chedimir won on time"]

1. d4 {[%clk 0:03:01.9]} 1... Nf6 {[%clk 0:03:00.5]} 2. Nf3 {[%clk 0:03:02.6]}
2... e6 {[%clk 0:03:01.1]} 3. c4 {[%clk 0:03:02.7]} 3... c5 {[%clk 0:03:00.9]}
4. d5 {[%clk 0:03:03.1]} 4... exd5 {[%clk 0:03:01.4]} 5. cxd5 {[%clk 0:03:05]}
5... d6 {[%clk 0:03:01.3]} 6. Nc3 {[%clk 0:03:05.9]} 6... g6 {[%clk 0:03:02.3]}
7. Nd2 {[%clk 0:03:06.4]} 7... Bg7 {[%clk 0:03:02.8]} 8. e4 {[%clk 0:03:07.1]}
8... O-O {[%clk 0:03:03.4]} 9. Be2 {[%clk 0:03:07.7]} 9... a6 {[%clk 0:03:02.3]}
10. a4 {[%clk 0:03:07.4]} 10... Nbd7 {[%clk 0:03:00.9]} 11. O-O {[%clk
0:03:06.9]} 11... Re8 {[%clk 0:03:01]} 12. Re1 {[%clk 0:02:44.3]} 12... Rb8
{[%clk 0:02:55.6]} 13. Bf1 {[%clk 0:02:36.8]} 13... Qc7 {[%clk 0:02:56.2]} 14.
Nc4 {[%clk 0:02:26.6]} 14... b5 {[%clk 0:02:52.7]} 15. axb5 {[%clk 0:02:27.3]}
15... axb5 {[%clk 0:02:53.3]} 16. Na5 {[%clk 0:02:21.6]} 16... b4 {[%clk
0:02:53.4]} 17. Nb5 {[%clk 0:02:20.1]} 17... Rxb5 {[%clk 0:02:51.8]} 18. Bxb5
{[%clk 0:02:19.2]} 18... Rxe4 {[%clk 0:02:51]} 19. Rxe4 {[%clk 0:02:05.2]} 19...
Nxe4 {[%clk 0:02:51]} 20. Nc4 {[%clk 0:01:58.4]} 20... Bd4 {[%clk 0:02:32.1]}
21. Be3 {[%clk 0:01:57.2]} 21... Bxe3 {[%clk 0:02:30.3]} 22. Nxe3 {[%clk
0:01:57.4]} 22... Kg7 {[%clk 0:02:22.8]} 23. Nc4 {[%clk 0:01:44]} 23... Ne5
{[%clk 0:02:04.6]} 24. Qe2 {[%clk 0:01:30]} 24... f5 {[%clk 0:02:02.4]} 25. f3
{[%clk 0:01:26.6]} 25... Nf6 {[%clk 0:02:00.5]} 26. f4 {[%clk 0:01:09.5]} 26...
Nf7 {[%clk 0:01:57.5]} 27. Rd1 {[%clk 0:00:54.3]} 27... Ne4 {[%clk 0:01:48.7]}
28. Nd2 {[%clk 0:00:54.7]} 28... Nf6 {[%clk 0:01:35.5]} 29. Bc4 {[%clk
0:00:54.1]} 29... Bb7 {[%clk 0:01:21.6]} 30. Nf3 {[%clk 0:00:42.5]} 30... Ne4
{[%clk 0:01:21]} 31. Ra1 {[%clk 0:00:34.3]} 31... Qb6 {[%clk 0:01:16.9]} 32. Nd2
{[%clk 0:00:31.1]} 32... Nf6 {[%clk 0:00:59]} 33. Qe6 {[%clk 0:00:28.1]} 33...
b3 {[%clk 0:00:59.6]} 34. Ra4 {[%clk 0:00:18.1]} 34... Qc7 {[%clk 0:00:56]} 35.
Ra7 {[%clk 0:00:16.3]} 35... Qb6 {[%clk 0:00:56.7]} 36. Ra4 {[%clk 0:00:17.2]}
36... Qc7 {[%clk 0:00:56.9]} 37. h3 {[%clk 0:00:18.3]} 37... h6 {[%clk
0:00:56.7]} 38. Kh2 {[%clk 0:00:18.5]} 38... Nd8 {[%clk 0:00:56.7]} 39. Qe3
{[%clk 0:00:18.1]} 39... Bxd5 {[%clk 0:00:54.8]} 40. Qxb3 {[%clk 0:00:16.3]}
40... Bc6 {[%clk 0:00:52.5]} 41. Ra1 {[%clk 0:00:12.9]} 41... d5 {[%clk
0:00:53]} 42. Bb5 {[%clk 0:00:13.5]} 42... c4 {[%clk 0:00:48.7]} 43. Qa4 {[%clk
0:00:14.4]} 43... Bxb5 {[%clk 0:00:48.7]} 44. Qxb5 {[%clk 0:00:16.3]} 44...
Qxf4+ {[%clk 0:00:47.5]} 45. Kh1 {[%clk 0:00:17.5]} 45... Qxd2 {[%clk
0:00:47.9]} 46. Ra7+ {[%clk 0:00:17.9]} 46... Nf7 {[%clk 0:00:47.5]} 47. Qb7
{[%clk 0:00:12.3]} 47... Qe1+ {[%clk 0:00:48.2]} 48. Kh2 {[%clk 0:00:13.4]}
48... Qe6 {[%clk 0:00:48.6]} 49. Kg1 {[%clk 0:00:09.1]} 49... d4 {[%clk
0:00:48.3]} 50. Ra6 {[%clk 0:00:07.2]} 50... Qe1+ {[%clk 0:00:48]} 51. Kh2
{[%clk 0:00:08.5]} 51... Qe5+ {[%clk 0:00:48.9]} 52. Kg1 {[%clk 0:00:09]} 52...
d3 {[%clk 0:00:48.1]} 53. Ra7 {[%clk 0:00:08.9]} 53... Qd4+ {[%clk 0:00:45.9]}
54. Kh1 {[%clk 0:00:08.8]} 54... Qd5 {[%clk 0:00:43.2]} 55. Qxd5 {[%clk
0:00:06]} 55... Nxd5 {[%clk 0:00:43.4]} 56. Rd7 {[%clk 0:00:05.3]} 56... Ne3
{[%clk 0:00:41.1]} 57. Kg1 {[%clk 0:00:04.9]} 57... Kf6 {[%clk 0:00:37.6]} 0-1

[Event "*** Titled Tuesday Blitz"]
[Site "Chess.com"]
[Date "2019.01.01"]
[Round "2"]
[White "NeverEverForever1990"]
[Black "M1711"]
[Result "0-1"]
[WhiteElo "2375"]
[BlackElo "2545"]
[TimeControl "180+2"]
[EndTime "13:23:31 PST"]
[Termination "M1711 won by resignation"]

1. d4 {[%clk 0:03:01.9]} 1... Nf6 {[%clk 0:02:59.9]} 2. c4 {[%clk 0:03:03]} 2...
e6 {[%clk 0:03:01.2]} 3. Nf3 {[%clk 0:03:03.5]} 3... b6 {[%clk 0:03:01.4]} 4. g3
{[%clk 0:03:01]} 4... Bb7 {[%clk 0:03:02.4]} 5. Bg2 {[%clk 0:03:02]} 5... Be7
{[%clk 0:03:02.9]} 6. O-O {[%clk 0:03:03.4]} 6... O-O {[%clk 0:03:04.6]} 7. Nc3
{[%clk 0:03:03.1]} 7... Ne4 {[%clk 0:03:05.8]} 8. Qc2 {[%clk 0:03:04.2]} 8...
Nxc3 {[%clk 0:03:06.3]} 9. Qxc3 {[%clk 0:03:06.1]} 9... c5 {[%clk 0:03:07.7]}
10. Bf4 {[%clk 0:02:58.7]} 10... d6 {[%clk 0:02:59.4]} 11. dxc5 {[%clk
0:02:20.6]} 11... bxc5 {[%clk 0:02:46.5]} 12. Rad1 {[%clk 0:02:12.8]} 12... Qc7
{[%clk 0:02:42.6]} 13. Nd2 {[%clk 0:02:08.2]} 13... Bxg2 {[%clk 0:02:31.8]} 14.
Kxg2 {[%clk 0:02:10.1]} 14... e5 {[%clk 0:02:20]} 15. Be3 {[%clk 0:02:08.7]}
15... Nc6 {[%clk 0:02:21.1]} 16. Qd3 {[%clk 0:02:01.7]} 16... f5 {[%clk
0:02:05.9]} 17. f3 {[%clk 0:01:59.5]} 17... Nb4 {[%clk 0:02:02.4]} 18. Qb1
{[%clk 0:01:55]} 18... Rab8 {[%clk 0:01:56.9]} 19. Bg1 {[%clk 0:01:49.1]} 19...
Nc6 {[%clk 0:01:48.9]} 20. e4 {[%clk 0:01:44]} 20... f4 {[%clk 0:01:44.3]} 21.
g4 {[%clk 0:01:38.2]} 21... Nd4 {[%clk 0:01:43]} 22. b3 {[%clk 0:01:35]} 22...
a5 {[%clk 0:01:43.2]} 23. Qd3 {[%clk 0:01:36]} 23... a4 {[%clk 0:01:43.3]} 24.
Rb1 {[%clk 0:01:34.1]} 24... axb3 {[%clk 0:01:42]} 25. axb3 {[%clk 0:01:35.6]}
25... Rb4 {[%clk 0:01:24.9]} 26. Rb2 {[%clk 0:01:22.2]} 26... Rfb8 {[%clk
0:01:23.4]} 27. Ra1 {[%clk 0:01:20.8]} 27... Qb7 {[%clk 0:01:17.7]} 28. Ra3
{[%clk 0:01:17.9]} 28... Bh4 {[%clk 0:00:58.5]} 29. Qb1 {[%clk 0:00:31.7]} 29...
Rb6 {[%clk 0:00:34.6]} 30. Qa2 {[%clk 0:00:25.3]} 30... Nc6 {[%clk 0:00:33.9]}
31. Qb1 {[%clk 0:00:20.5]} 31... Ra8 {[%clk 0:00:29.7]} 32. Rba2 {[%clk
0:00:20.3]} 32... Rba6 {[%clk 0:00:29.9]} 33. Qa1 {[%clk 0:00:20.5]} 33... Nb4
{[%clk 0:00:21.1]} 34. Rxa6 {[%clk 0:00:21]} 34... Rxa6 {[%clk 0:00:23]} 35.
Rxa6 {[%clk 0:00:22]} 35... Qxa6 {[%clk 0:00:16.8]} 36. Qxa6 {[%clk 0:00:22.8]}
36... Nxa6 {[%clk 0:00:18.7]} 37. Nb1 {[%clk 0:00:24]} 37... Be1 {[%clk
0:00:16]} 38. Bf2 {[%clk 0:00:25]} 38... Bb4 {[%clk 0:00:14.7]} 39. Kf1 {[%clk
0:00:25.9]} 39... Kf7 {[%clk 0:00:15.5]} 40. Ke2 {[%clk 0:00:27.1]} 40... Nb8
{[%clk 0:00:14.8]} 41. Be1 {[%clk 0:00:27.4]} 41... Bxe1 {[%clk 0:00:15.4]} 42.
Kxe1 {[%clk 0:00:29.3]} 42... Nc6 {[%clk 0:00:17.2]} 43. Nd2 {[%clk 0:00:30.6]}
43... Nd4 {[%clk 0:00:18.1]} 44. h4 {[%clk 0:00:31.5]} 44... Ke6 {[%clk
0:00:17]} 45. Kd1 {[%clk 0:00:32.3]} 45... h5 {[%clk 0:00:10.6]} 46. g5 {[%clk
0:00:32.6]} 46... Kd7 {[%clk 0:00:11.1]} 47. Kc1 {[%clk 0:00:33.7]} 47... Kc6
{[%clk 0:00:10.3]} 48. Kb2 {[%clk 0:00:32.5]} 48... Kb6 {[%clk 0:00:08.3]} 49.
Kc3 {[%clk 0:00:33]} 49... Ka5 {[%clk 0:00:08.1]} 50. Kb2 {[%clk 0:00:09.3]}
50... Kb4 {[%clk 0:00:08.5]} 51. Nb1 {[%clk 0:00:10.3]} 51... Nxb3 {[%clk
0:00:09]} 52. Nc3 {[%clk 0:00:10.5]} 52... Kxc4 {[%clk 0:00:08.6]} 53. Nd5
{[%clk 0:00:11.4]} 53... Nd4 {[%clk 0:00:08.9]} 54. Nc7 {[%clk 0:00:11.3]} 54...
Nxf3 {[%clk 0:00:08]} 55. Ne6 {[%clk 0:00:12.9]} 55... Nxh4 {[%clk 0:00:08.3]}
56. Nxg7 {[%clk 0:00:14.2]} 56... Ng6 {[%clk 0:00:09]} 57. Nf5 {[%clk
0:00:15.6]} 57... h4 {[%clk 0:00:09.4]} 58. Nxd6+ {[%clk 0:00:16.2]} 58... Kd4
{[%clk 0:00:10.6]} 59. Kc2 {[%clk 0:00:17]} 59... h3 {[%clk 0:00:11.1]} 60. Kd2
{[%clk 0:00:17.6]} 60... h2 {[%clk 0:00:12.3]} 61. Nf5+ {[%clk 0:00:18.8]} 61...
Kxe4 {[%clk 0:00:13.8]} 62. Ke2 {[%clk 0:00:19.6]} 62... h1=Q {[%clk 0:00:13.3]}
63. Ng3+ {[%clk 0:00:21.5]} 63... fxg3 {[%clk 0:00:14.5]} 64. Kd2 {[%clk
0:00:23.3]} 64... Qf3 {[%clk 0:00:15.2]} 65. Ke1 {[%clk 0:00:24.2]} 65... Qf2+
{[%clk 0:00:15.3]} 66. Kd1 {[%clk 0:00:25.2]} 66... g2 {[%clk 0:00:17.2]} 0-1